[Event "Live Chess"]
[Site "Chess.com"]
[Date "2023.05.20"]
[Round "-"]
[White "CeladonFish"]
[Black "AdamHunt1"]
[Result "0-1"]
[WhiteElo "984"]
[BlackElo "2255"]
[TimeControl "300"]
[EndTime "10:15:40 PDT"]
[Termination "AdamHunt1 won by checkmate"]

1. d4 {[%clk 0:04:56.5]} 1... Nf6 {[%clk 0:04:57.8]} 2. c4 {[%clk 0:04:55.5]}
2... e5 {[%clk 0:04:54.3]} 3. dxe5 {[%clk 0:04:54.3]} 3... Ng4 {[%clk
0:04:52.6]} 4. Bf4 {[%clk 0:04:52.8]} 4... Bb4+ {[%clk 0:04:48]} 5. Nd2 {[%clk
0:04:51.4]} 5... Nc6 {[%clk 0:04:46.3]} 6. Nf3 {[%clk 0:04:50.3]} 6... Qe7
{[%clk 0:04:44]} 7. e3 {[%clk 0:04:49.2]} 7... O-O {[%clk 0:04:40.4]} 8. Be2
{[%clk 0:04:48.1]} 8... Ngxe5 {[%clk 0:04:38.9]} 9. Nxe5 {[%clk 0:04:46.9]} 9...
Nxe5 {[%clk 0:04:37.6]} 10. O-O {[%clk 0:04:44]} 10... Ng6 {[%clk 0:04:33.7]}
11. a3 {[%clk 0:04:38.9]} 11... Bd6 {[%clk 0:04:26.1]} 12. Bxd6 {[%clk
0:04:36.8]} 12... Qxd6 {[%clk 0:04:26]} 13. Qc2 {[%clk 0:04:27.2]} 13... a5
{[%clk 0:04:04.8]} 14. Rfd1 {[%clk 0:04:20.7]} 14... Qe7 {[%clk 0:03:59.9]} 15.
Ra2 {[%clk 0:04:14.6]} 15... d6 {[%clk 0:03:57.5]} 16. Rda1 {[%clk 0:04:13.4]}
16... Nh4 {[%clk 0:03:52.5]} 17. g3 {[%clk 0:04:07.8]} 17... Ng6 {[%clk
0:03:35.3]} 18. b4 {[%clk 0:04:02.3]} 18... h5 {[%clk 0:03:32.8]} 19. Bxh5
{[%clk 0:03:55.5]} 19... Ne5 {[%clk 0:03:31]} 20. Be2 {[%clk 0:03:51.9]} 20...
Bh3 {[%clk 0:03:26.1]} 21. bxa5 {[%clk 0:03:48.4]} 21... Rxa5 {[%clk 0:03:24.2]}
22. Bd3 {[%clk 0:03:38.6]} 22... Qf6 {[%clk 0:03:20.5]} 23. f4 {[%clk
0:03:33.5]} 23... Ng4 {[%clk 0:03:11.3]} 24. Ne4 {[%clk 0:03:28.2]} 24... Qe6
{[%clk 0:03:01.1]} 25. Re1 {[%clk 0:03:13.7]} 25... f6 {[%clk 0:02:42.3]} 26. c5
{[%clk 0:02:45.9]} 26... d5 {[%clk 0:02:36]} 27. Nc3 {[%clk 0:02:36]} 27... Rxc5
{[%clk 0:02:33.3]} 28. Bf5 {[%clk 0:02:28.1]} 28... Qc6 {[%clk 0:02:24.2]} 29.
Qe2 {[%clk 0:01:54.3]} 29... Rxc3 {[%clk 0:02:00.5]} 30. Bxg4 {[%clk 0:01:52.8]}
30... Bxg4 {[%clk 0:01:59.2]} 31. Qxg4 {[%clk 0:01:51.7]} 31... Re8 {[%clk
0:01:54.4]} 32. Qf3 {[%clk 0:01:40.2]} 32... d4 {[%clk 0:01:52]} 33. Qxc6 {[%clk
0:01:35.3]} 33... bxc6 {[%clk 0:01:50.6]} 34. e4 {[%clk 0:01:31]} 34... c5
{[%clk 0:01:44.2]} 35. e5 {[%clk 0:01:29.9]} 35... fxe5 {[%clk 0:01:42.2]} 36.
fxe5 {[%clk 0:01:29.3]} 36... c4 {[%clk 0:01:41]} 37. a4 {[%clk 0:01:26.8]}
37... d3 {[%clk 0:01:40.2]} 38. a5 {[%clk 0:01:23]} 38... Rb3 {[%clk 0:01:37.6]}
39. a6 {[%clk 0:01:20.3]} 39... c3 {[%clk 0:01:36.1]} 40. a7 {[%clk 0:01:15.1]}
40... Ra8 {[%clk 0:01:34.4]} 41. e6 {[%clk 0:01:12.9]} 41... d2 {[%clk 0:01:30]}
42. Rd1 {[%clk 0:01:06.5]} 42... Rb2 {[%clk 0:01:09.2]} 43. Raa1 {[%clk
0:00:59.5]} 43... c2 {[%clk 0:01:06]} 44. Rxd2 {[%clk 0:00:58.8]} 44... Rb1+
{[%clk 0:01:05.3]} 45. Rxb1 {[%clk 0:00:53.9]} 45... cxb1=Q+ {[%clk 0:01:03.3]}
46. Kg2 {[%clk 0:00:53.4]} 46... Qe4+ {[%clk 0:00:59.4]} 47. Kf2 {[%clk
0:00:51.6]} 47... Rxa7 {[%clk 0:00:57.9]} 48. Re2 {[%clk 0:00:50.3]} 48... Qf5+
{[%clk 0:00:55.9]} 49. Ke1 {[%clk 0:00:49.1]} 49... Ra1+ {[%clk 0:00:53.1]} 50.
Kd2 {[%clk 0:00:48.5]} 50... Ra2+ {[%clk 0:00:53]} 51. Ke1 {[%clk 0:00:47.6]}
51... Rxe2+ {[%clk 0:00:50.5]} 52. Kxe2 {[%clk 0:00:47.3]} 52... Qxe6+ {[%clk
0:00:49.9]} 53. Kf3 {[%clk 0:00:46.9]} 53... c5 {[%clk 0:00:48.9]} 54. Kf4
{[%clk 0:00:45.2]} 54... c4 {[%clk 0:00:48.8]} 55. g4 {[%clk 0:00:44.2]} 55...
c3 {[%clk 0:00:48.7]} 56. g5 {[%clk 0:00:43.8]} 56... c2 {[%clk 0:00:48.6]} 57.
g6 {[%clk 0:00:43.4]} 57... c1=B+ {[%clk 0:00:47.4]} 58. Kf3 {[%clk 0:00:40]}
58... Qe3+ {[%clk 0:00:44.9]} 59. Kg4 {[%clk 0:00:39.1]} 59... Qf4+ {[%clk
0:00:43.9]} 60. Kh3 {[%clk 0:00:38.5]} 60... Qf3+ {[%clk 0:00:43.2]} 61. Kh4
{[%clk 0:00:37.7]} 61... Qf4+ {[%clk 0:00:39.4]} 62. Kh3 {[%clk 0:00:36.9]}
62... Qh6+ {[%clk 0:00:35.4]} 63. Kg3 {[%clk 0:00:36]} 63... Qxg6+ {[%clk
0:00:35.3]} 64. Kh3 {[%clk 0:00:35.4]} 64... Qf5+ {[%clk 0:00:34.5]} 65. Kg3
{[%clk 0:00:35]} 65... g5 {[%clk 0:00:33]} 66. h4 {[%clk 0:00:33.7]} 66... g4
{[%clk 0:00:32]} 67. h5 {[%clk 0:00:32.5]} 67... Qf3+ {[%clk 0:00:30.8]} 68. Kh4
{[%clk 0:00:32.1]} 68... g3 {[%clk 0:00:29.1]} 69. h6 {[%clk 0:00:31.2]} 69...
Kh8 {[%clk 0:00:28.7]} 70. h7 {[%clk 0:00:30.8]} 70... Qf4+ {[%clk 0:00:25]} 71.
Kh3 {[%clk 0:00:29.9]} 71... Be3 {[%clk 0:00:23.1]} 72. Kg2 {[%clk 0:00:28.3]}
72... Qg4 {[%clk 0:00:22.7]} 73. Kf1 {[%clk 0:00:27.4]} 73... Qf3+ {[%clk
0:00:21.4]} 74. Ke1 {[%clk 0:00:26.2]} 74... Qf2+ {[%clk 0:00:19.4]} 75. Kd1
{[%clk 0:00:24.9]} 75... Qd2# {[%clk 0:00:19.3]} 0-1

[Event "Live Chess"]
[Site "Chess.com"]
[Date "2023.05.20"]
[Round "-"]
[White "Fazer180"]
[Black "YrrriKharkiv"]
[Result "0-1"]
[WhiteElo "1700"]
[BlackElo "2085"]
[TimeControl "300"]
[EndTime "10:15:49 PDT"]
[Termination "YrrriKharkiv won by checkmate"]

1. e4 {[%clk 0:04:57.8]} 1... e6 {[%clk 0:04:59.1]} 2. d4 {[%clk 0:04:56.1]}
2... d5 {[%clk 0:04:58.5]} 3. Nc3 {[%clk 0:04:55.8]} 3... Nf6 {[%clk 0:04:56.9]}
4. e5 {[%clk 0:04:54.8]} 4... Nfd7 {[%clk 0:04:56.2]} 5. f4 {[%clk 0:04:54.5]}
5... c5 {[%clk 0:04:55.5]} 6. Nf3 {[%clk 0:04:53.9]} 6... Nc6 {[%clk 0:04:53.1]}
7. Be3 {[%clk 0:04:52.6]} 7... f6 {[%clk 0:04:50.8]} 8. exf6 {[%clk 0:04:43.7]}
8... Qxf6 {[%clk 0:04:47.3]} 9. Be2 {[%clk 0:04:37.4]} 9... cxd4 {[%clk
0:04:36.4]} 10. Nxd4 {[%clk 0:04:33.7]} 10... Nxd4 {[%clk 0:04:32.4]} 11. Qxd4
{[%clk 0:04:31.5]} 11... Bc5 {[%clk 0:04:15.7]} 12. Qxf6 {[%clk 0:04:11.9]}
12... gxf6 {[%clk 0:04:14.9]} 13. Bxc5 {[%clk 0:04:06.3]} 13... Nxc5 {[%clk
0:04:13.8]} 14. O-O-O {[%clk 0:03:59.5]} 14... f5 {[%clk 0:04:04.8]} 15. Nb5
{[%clk 0:03:44.2]} 15... Ke7 {[%clk 0:04:02.5]} 16. Bf3 {[%clk 0:03:36.2]} 16...
Bd7 {[%clk 0:03:53.2]} 17. Nd4 {[%clk 0:03:30.3]} 17... h5 {[%clk 0:03:37.6]}
18. Rhe1 {[%clk 0:03:28.1]} 18... Ne4 {[%clk 0:03:36.7]} 19. Bxe4 {[%clk
0:03:23.1]} 19... fxe4 {[%clk 0:03:33.9]} 20. Re3 {[%clk 0:03:10.4]} 20... Rhf8
{[%clk 0:03:24.8]} 21. g3 {[%clk 0:03:09.1]} 21... Rac8 {[%clk 0:03:18.3]} 22.
Rb3 {[%clk 0:03:00.7]} 22... b6 {[%clk 0:03:00.2]} 23. Ra3 {[%clk 0:02:54]}
23... Rc7 {[%clk 0:02:59]} 24. Rf1 {[%clk 0:02:41.4]} 24... e5 {[%clk
0:02:44.7]} 25. Nb3 {[%clk 0:02:13.1]} 25... Rfc8 {[%clk 0:02:20]} 26. c3 {[%clk
0:02:02.7]} 26... Rf8 {[%clk 0:02:09.2]} 27. Kd2 {[%clk 0:01:52.6]} 27... Bh3
{[%clk 0:02:02.3]} 28. Rf2 {[%clk 0:01:49]} 28... h4 {[%clk 0:02:01.6]} 29. Ke3
{[%clk 0:01:40.4]} 29... hxg3 {[%clk 0:02:00.4]} 30. hxg3 {[%clk 0:01:39.2]}
30... Rg8 {[%clk 0:01:45.1]} 31. fxe5 {[%clk 0:01:35.7]} 31... Rxg3+ {[%clk
0:01:43.5]} 32. Kd4 {[%clk 0:01:35.3]} 32... Rd3# {[%clk 0:01:37.2]} 0-1

[Event "Live Chess"]
[Site "Chess.com"]
[Date "2023.05.20"]
[Round "-"]
[White "MMmaaxxxx"]
[Black "JanMur7"]
[Result "1-0"]
[WhiteElo "2022"]
[BlackElo "1980"]
[TimeControl "300"]
[EndTime "10:15:52 PDT"]
[Termination "MMmaaxxxx won on time"]

1. e4 {[%clk 0:04:58.6]} 1... e5 {[%clk 0:04:57.9]} 2. Nc3 {[%clk 0:04:57.7]}
2... Nf6 {[%clk 0:04:56.4]} 3. f4 {[%clk 0:04:56.9]} 3... d5 {[%clk 0:04:55.8]}
4. fxe5 {[%clk 0:04:56.2]} 4... Nxe4 {[%clk 0:04:54.8]} 5. Qf3 {[%clk
0:04:55.8]} 5... Nxc3 {[%clk 0:04:52.7]} 6. bxc3 {[%clk 0:04:55.7]} 6... c5
{[%clk 0:04:51.4]} 7. Qg3 {[%clk 0:04:55]} 7... Nc6 {[%clk 0:04:49.4]} 8. Nf3
{[%clk 0:04:54]} 8... Be6 {[%clk 0:04:41.7]} 9. Bb5 {[%clk 0:04:53.2]} 9... a6
{[%clk 0:04:31.4]} 10. Bxc6+ {[%clk 0:04:52.3]} 10... bxc6 {[%clk 0:04:31.3]}
11. O-O {[%clk 0:04:51.8]} 11... Qb6 {[%clk 0:04:19]} 12. Ng5 {[%clk 0:04:47.1]}
12... c4+ {[%clk 0:03:57.9]} 13. Kh1 {[%clk 0:04:44.7]} 13... c5 {[%clk
0:03:34.3]} 14. Qf3 {[%clk 0:04:29.5]} 14... Ra7 {[%clk 0:03:22.1]} 15. Nxe6
{[%clk 0:02:25.5]} 15... Qxe6 {[%clk 0:03:17.7]} 16. Rb1 {[%clk 0:02:24.5]}
16... Be7 {[%clk 0:03:08.9]} 17. Rb8+ {[%clk 0:02:16.1]} 17... Bd8 {[%clk
0:03:07.4]} 18. Qe3 {[%clk 0:02:08.7]} 18... Qe7 {[%clk 0:02:51.6]} 19. Ba3
{[%clk 0:02:06.7]} 19... Rc7 {[%clk 0:02:49.1]} 20. Ra8 {[%clk 0:01:59.9]} 20...
O-O {[%clk 0:02:44.5]} 21. Rxa6 {[%clk 0:01:56.5]} 21... Qg5 {[%clk 0:02:29]}
22. Qxg5 {[%clk 0:01:54.6]} 22... Bxg5 {[%clk 0:02:28.9]} 23. d4 {[%clk
0:01:42.9]} 23... cxd3 {[%clk 0:01:56.1]} 24. cxd3 {[%clk 0:01:42.8]} 24... Re8
{[%clk 0:01:54.8]} 25. d4 {[%clk 0:01:35.6]} 25... cxd4 {[%clk 0:01:51.8]} 26.
cxd4 {[%clk 0:01:35.5]} 26... Be3 {[%clk 0:01:48.4]} 27. Bc5 {[%clk 0:01:33.4]}
27... h6 {[%clk 0:01:41.7]} 28. Re1 {[%clk 0:01:23.8]} 28... Bd2 {[%clk
0:01:21]} 29. Re2 {[%clk 0:01:22.4]} 29... Rb7 {[%clk 0:01:13.4]} 30. g3 {[%clk
0:01:21.1]} 30... Rb1+ {[%clk 0:01:05.6]} 31. Kg2 {[%clk 0:01:19.5]} 31... Bb4
{[%clk 0:01:03.3]} 32. Rb6 {[%clk 0:01:17.3]} 32... Bxc5 {[%clk 0:00:57.5]} 33.
Rxb1 {[%clk 0:01:15.9]} 33... Bxd4 {[%clk 0:00:57.4]} 34. Rbe1 {[%clk
0:01:14.3]} 34... Ra8 {[%clk 0:00:52.8]} 35. Rd1 {[%clk 0:01:10.1]} 35... Ra4
{[%clk 0:00:48.1]} 36. g4 {[%clk 0:01:02.6]} 36... Kh7 {[%clk 0:00:32.8]} 37. h3
{[%clk 0:01:01.4]} 37... Kg6 {[%clk 0:00:31.4]} 38. Kf3 {[%clk 0:01:00.6]} 38...
Ra3+ {[%clk 0:00:27.3]} 39. Kg2 {[%clk 0:00:58.4]} 39... Ra4 {[%clk 0:00:26.9]}
40. Rd3 {[%clk 0:00:56.2]} 40... Kg5 {[%clk 0:00:20.5]} 41. Kg3 {[%clk
0:00:52.4]} 41... Kg6 {[%clk 0:00:16]} 42. h4 {[%clk 0:00:51.6]} 42... h5 {[%clk
0:00:15]} 43. g5 {[%clk 0:00:47]} 43... Kf5 {[%clk 0:00:11.6]} 44. Rf3+ {[%clk
0:00:46.1]} 44... Ke6 {[%clk 0:00:10.5]} 45. Kh3 {[%clk 0:00:19.6]} 45... Bxe5
{[%clk 0:00:10.4]} 46. Rfe3 {[%clk 0:00:18.2]} 46... f6 {[%clk 0:00:09.2]} 47.
gxf6 {[%clk 0:00:16.1]} 47... gxf6 {[%clk 0:00:09.1]} 48. Rb3 {[%clk 0:00:14.7]}
48... d4 {[%clk 0:00:08.5]} 49. Rb6+ {[%clk 0:00:13.9]} 49... Kf5 {[%clk
0:00:08.4]} 50. Rf2+ {[%clk 0:00:12.9]} 50... Ke4 {[%clk 0:00:07.1]} 51. Rb3
{[%clk 0:00:12.5]} 51... Rc4 {[%clk 0:00:05.7]} 52. Re2+ {[%clk 0:00:11.6]}
52... Kd5 {[%clk 0:00:05.1]} 53. Rd2 {[%clk 0:00:10.6]} 53... Kc6 {[%clk
0:00:05]} 54. Rdd3 {[%clk 0:00:08.1]} 54... Rc3 {[%clk 0:00:04.9]} 55. Rdxc3+
{[%clk 0:00:07.3]} 55... dxc3 {[%clk 0:00:04.8]} 56. Rb1 {[%clk 0:00:06.6]}
56... Kc5 {[%clk 0:00:04.7]} 57. Rc1 {[%clk 0:00:06.5]} 57... Kc4 {[%clk
0:00:04.4]} 58. Kg2 {[%clk 0:00:04.7]} 58... Kd3 {[%clk 0:00:04.3]} 59. Kf3
{[%clk 0:00:04.6]} 59... c2 {[%clk 0:00:04.2]} 60. Rxc2 {[%clk 0:00:04.2]} 60...
Kxc2 {[%clk 0:00:03.2]} 61. a4 {[%clk 0:00:04]} 61... Kb2 {[%clk 0:00:03.1]} 62.
a5 {[%clk 0:00:03.2]} 62... Bb8 {[%clk 0:00:03]} 63. a6 {[%clk 0:00:03.1]} 63...
Ba7 {[%clk 0:00:02.8]} 64. Ke4 {[%clk 0:00:02.5]} 64... Kc2 {[%clk 0:00:02.7]}
65. Kf5 {[%clk 0:00:02.4]} 65... Kd2 {[%clk 0:00:02.5]} 66. Kxf6 {[%clk
0:00:02]} 66... Ke3 {[%clk 0:00:02.4]} 67. Kg5 {[%clk 0:00:01.9]} 67... Kf3
{[%clk 0:00:02.3]} 68. Kxh5 {[%clk 0:00:01.8]} 68... Ke3 {[%clk 0:00:02.2]} 69.
Kg5 {[%clk 0:00:01.3]} 69... Kd4 {[%clk 0:00:02.1]} 70. h5 {[%clk 0:00:01.2]}
70... Kd5 {[%clk 0:00:02]} 71. Kg6 {[%clk 0:00:01.1]} 71... Kc5 {[%clk
0:00:01.9]} 72. h6 {[%clk 0:00:01]} 72... Kc6 {[%clk 0:00:01.8]} 73. h7 {[%clk
0:00:00.9]} 73... Kb6 {[%clk 0:00:01.7]} 74. h8=Q {[%clk 0:00:00.8]} 74... Kxa6
{[%clk 0:00:01.6]} 75. Qg8 {[%clk 0:00:00.7]} 75... Bb6 {[%clk 0:00:01.5]} 76.
Qf7 {[%clk 0:00:00.6]} 76... Kb5 {[%clk 0:00:01.4]} 77. Qe6 {[%clk 0:00:00.5]}
77... Kc5 {[%clk 0:00:00.2]} 78. Qf5+ {[%clk 0:00:00.4]} 1-0

[Event "Live Chess"]
[Site "Chess.com"]
[Date "2023.05.20"]
[Round "-"]
[White "lateforthesky"]
[Black "ramses-IIG"]
[Result "1-0"]
[WhiteElo "2087"]
[BlackElo "759"]
[TimeControl "300"]
[EndTime "10:15:57 PDT"]
[Termination "lateforthesky won by checkmate"]

1. e4 {[%clk 0:04:57.8]} 1... d5 {[%clk 0:04:59.9]} 2. exd5 {[%clk 0:04:56.4]}
2... Qxd5 {[%clk 0:04:59.8]} 3. Nc3 {[%clk 0:04:54.6]} 3... Qe6+ {[%clk
0:04:59.7]} 4. Be2 {[%clk 0:04:52.1]} 4... Qg6 {[%clk 0:04:59.6]} 5. Bf3 {[%clk
0:04:49.8]} 5... c6 {[%clk 0:04:58.6]} 6. Nge2 {[%clk 0:04:46.7]} 6... e5 {[%clk
0:04:57.2]} 7. Ng3 {[%clk 0:04:44.6]} 7... Bb4 {[%clk 0:04:48.6]} 8. O-O {[%clk
0:04:40.2]} 8... f6 {[%clk 0:04:37.1]} 9. d4 {[%clk 0:04:36.3]} 9... Bxc3 {[%clk
0:04:18.2]} 10. bxc3 {[%clk 0:04:34.5]} 10... e4 {[%clk 0:04:07.5]} 11. Nxe4
{[%clk 0:04:27.2]} 11... Bf5 {[%clk 0:03:55.5]} 12. Re1 {[%clk 0:04:23.3]} 12...
Ne7 {[%clk 0:03:49.6]} 13. Nd6+ {[%clk 0:04:18.5]} 13... Kd7 {[%clk 0:03:41.8]}
14. Nxf5 {[%clk 0:03:56.5]} 14... Nxf5 {[%clk 0:03:41.7]} 15. Qe2 {[%clk
0:03:46.4]} 15... Na6 {[%clk 0:03:32.6]} 16. Qe6+ {[%clk 0:03:42.1]} 16... Kc7
{[%clk 0:03:19.1]} 17. Bf4+ {[%clk 0:03:40.6]} 17... Kb6 {[%clk 0:03:14.7]} 18.
Rab1+ {[%clk 0:03:38.7]} 18... Ka5 {[%clk 0:03:12.9]} 19. Qc4 {[%clk 0:02:46.8]}
19... Nh4 {[%clk 0:02:31.3]} 20. Be4 {[%clk 0:02:30.4]} 20... Qg4 {[%clk
0:02:08.4]} 21. Bc7+ {[%clk 0:02:23.7]} 21... Nxc7 {[%clk 0:01:52.4]} 22. Qb4+
{[%clk 0:02:19.7]} 22... Ka6 {[%clk 0:01:49.2]} 23. Qa4# {[%clk 0:02:18.8]} 1-0

[Event "Live Chess"]
[Site "Chess.com"]
[Date "2023.05.20"]
[Round "-"]
[White "mach247"]
[Black "lHolyDiverl"]
[Result "0-1"]
[WhiteElo "1325"]
[BlackElo "562"]
[TimeControl "300"]
[EndTime "10:16:00 PDT"]
[Termination "lHolyDiverl won by resignation"]

1. e4 {[%clk 0:04:59.3]} 1... c6 {[%clk 0:04:59.2]} 2. d4 {[%clk 0:04:58.2]}
2... d5 {[%clk 0:04:58.4]} 3. e5 {[%clk 0:04:57.8]} 3... Bf5 {[%clk 0:04:56.9]}
4. Nf3 {[%clk 0:04:55.9]} 4... e6 {[%clk 0:04:55]} 5. Nh4 {[%clk 0:04:52.4]}
5... Qxh4 {[%clk 0:04:41.7]} 6. g3 {[%clk 0:04:46.2]} 6... Qe4+ {[%clk
0:04:36.8]} 7. Qe2 {[%clk 0:04:36.7]} 7... Qxh1 {[%clk 0:04:33.4]} 8. Nc3 {[%clk
0:04:35.7]} 8... Bb4 {[%clk 0:04:26]} 9. Bd2 {[%clk 0:04:34.6]} 9... Bxc3 {[%clk
0:04:23.7]} 10. Bxc3 {[%clk 0:04:33.8]} 10... Qe4 {[%clk 0:04:19.6]} 11. Qxe4
{[%clk 0:04:28.4]} 11... Bxe4 {[%clk 0:04:14.1]} 0-1

[Event "Live Chess"]
[Site "Chess.com"]
[Date "2023.05.20"]
[Round "-"]
[White "FlyingChessKestrel13"]
[Black "birdseed45"]
[Result "1-0"]
[WhiteElo "2121"]
[BlackElo "1844"]
[TimeControl "300"]
[EndTime "10:16:04 PDT"]
[Termination "FlyingChessKestrel13 won by checkmate"]

1. e4 {[%clk 0:04:56.8]} 1... c5 {[%clk 0:04:58.6]} 2. Nc3 {[%clk 0:04:54.7]}
2... Nc6 {[%clk 0:04:57.7]} 3. g3 {[%clk 0:04:53.6]} 3... g6 {[%clk 0:04:56.7]}
4. Bg2 {[%clk 0:04:53.1]} 4... Bg7 {[%clk 0:04:55.7]} 5. d3 {[%clk 0:04:52.5]}
5... d6 {[%clk 0:04:54.8]} 6. Nge2 {[%clk 0:04:51.1]} 6... Nf6 {[%clk
0:04:53.7]} 7. O-O {[%clk 0:04:50]} 7... O-O {[%clk 0:04:52.1]} 8. Nd5 {[%clk
0:04:48.5]} 8... e6 {[%clk 0:04:49.8]} 9. Nxf6+ {[%clk 0:04:38.9]} 9... Bxf6
{[%clk 0:04:49.7]} 10. c3 {[%clk 0:04:37.7]} 10... h5 {[%clk 0:04:45.1]} 11. f4
{[%clk 0:04:33.3]} 11... Bg7 {[%clk 0:04:42.3]} 12. Be3 {[%clk 0:04:28.9]} 12...
Bd7 {[%clk 0:04:38.3]} 13. Qd2 {[%clk 0:04:28.5]} 13... Rc8 {[%clk 0:04:34.3]}
14. Rac1 {[%clk 0:04:26.7]} 14... Kh7 {[%clk 0:04:33]} 15. d4 {[%clk 0:04:24.1]}
15... cxd4 {[%clk 0:04:31.4]} 16. cxd4 {[%clk 0:04:22.1]} 16... e5 {[%clk
0:04:16.6]} 17. d5 {[%clk 0:04:00.8]} 17... Ne7 {[%clk 0:04:11.8]} 18. Kh1
{[%clk 0:03:45.1]} 18... a6 {[%clk 0:04:08.5]} 19. Rf2 {[%clk 0:03:38.3]} 19...
Rxc1+ {[%clk 0:04:06]} 20. Qxc1 {[%clk 0:03:37.5]} 20... Qa5 {[%clk 0:04:03]}
21. f5 {[%clk 0:03:23.8]} 21... gxf5 {[%clk 0:03:56.9]} 22. exf5 {[%clk
0:03:22]} 22... Bf6 {[%clk 0:03:52.3]} 23. Qd1 {[%clk 0:03:15.7]} 23... Nxf5
{[%clk 0:03:47.1]} 24. Be4 {[%clk 0:03:12.4]} 24... Kg6 {[%clk 0:03:34.6]} 25.
Qf1 {[%clk 0:03:09.7]} 25... Bg5 {[%clk 0:03:24.2]} 26. Rxf5 {[%clk 0:02:56.1]}
26... Bxe3 {[%clk 0:03:18.5]} 27. Rxf7+ {[%clk 0:02:54.4]} 27... Kg5 {[%clk
0:03:09.1]} 28. Rxf8 {[%clk 0:02:49.2]} 28... Qd2 {[%clk 0:02:56.8]} 29. Qf6+
{[%clk 0:02:39.8]} 29... Kg4 {[%clk 0:02:55.4]} 30. Qh4# {[%clk 0:02:37.1]} 1-0

[Event "Live Chess"]
[Site "Chess.com"]
[Date "2023.05.20"]
[Round "-"]
[White "olahgito"]
[Black "tpm07"]
[Result "0-1"]
[WhiteElo "730"]
[BlackElo "1996"]
[TimeControl "300"]
[EndTime "10:16:10 PDT"]
[Termination "tpm07 won on time"]

1. e4 {[%clk 0:04:59.5]} 1... c5 {[%clk 0:04:57.2]} 2. Nf3 {[%clk 0:04:59]} 2...
d6 {[%clk 0:04:55.8]} 3. c3 {[%clk 0:04:56.4]} 3... Nf6 {[%clk 0:04:53.2]} 4.
Bb5+ {[%clk 0:04:54.8]} 4... Bd7 {[%clk 0:04:50.9]} 5. Bxd7+ {[%clk 0:04:53.5]}
5... Nbxd7 {[%clk 0:04:50.8]} 6. d4 {[%clk 0:04:49.9]} 6... Nxe4 {[%clk
0:04:48.6]} 7. dxc5 {[%clk 0:04:48.9]} 7... Nexc5 {[%clk 0:04:46.3]} 8. Be3
{[%clk 0:04:48.5]} 8... g6 {[%clk 0:04:44.2]} 9. Bxc5 {[%clk 0:04:47.7]} 9...
Nxc5 {[%clk 0:04:42.7]} 10. O-O {[%clk 0:04:47.6]} 10... Bg7 {[%clk 0:04:40.4]}
11. Nbd2 {[%clk 0:04:41.3]} 11... O-O {[%clk 0:04:37.7]} 12. Nb3 {[%clk
0:04:38.9]} 12... b6 {[%clk 0:04:27.5]} 13. Re1 {[%clk 0:04:29.2]} 13... Qc7
{[%clk 0:04:17.8]} 14. h3 {[%clk 0:04:25.6]} 14... e6 {[%clk 0:04:16.5]} 15. a4
{[%clk 0:04:07.9]} 15... Rab8 {[%clk 0:04:04.4]} 16. Nh2 {[%clk 0:03:53.9]}
16... d5 {[%clk 0:04:02.2]} 17. g4 {[%clk 0:03:52.8]} 17... Ne4 {[%clk
0:03:48.7]} 18. Kg2 {[%clk 0:03:46.4]} 18... Qc6 {[%clk 0:03:44.8]} 19. f3
{[%clk 0:03:41.8]} 19... Nd6 {[%clk 0:03:37.4]} 20. Nd4 {[%clk 0:03:34.3]} 20...
Qb7 {[%clk 0:03:32.6]} 21. b4 {[%clk 0:03:26.7]} 21... Rbc8 {[%clk 0:03:25]} 22.
Rc1 {[%clk 0:03:14.7]} 22... Qa6 {[%clk 0:03:14.8]} 23. b5 {[%clk 0:02:50]}
23... Qb7 {[%clk 0:03:06.4]} 24. Qd2 {[%clk 0:01:17.5]} 24... Nc4 {[%clk
0:02:34.2]} 25. Qd3 {[%clk 0:01:09.3]} 25... Na5 {[%clk 0:02:20.1]} 26. Rc2
{[%clk 0:00:24.8]} 26... Rc4 {[%clk 0:02:11.4]} 27. f4 {[%clk 0:00:10.5]} 27...
Rxa4 {[%clk 0:02:01.1]} 28. Rec1 {[%clk 0:00:07.1]} 28... Rc4 {[%clk 0:01:57.6]}
0-1

[Event "Live Chess"]
[Site "Chess.com"]
[Date "2023.05.20"]
[Round "-"]
[White "LanceMaster23"]
[Black "HD_IN4k"]
[Result "0-1"]
[WhiteElo "1844"]
[BlackElo "302"]
[TimeControl "300"]
[EndTime "10:16:14 PDT"]
[Termination "HD_IN4k won - game abandoned"]

1. Nf3 {[%clk 0:04:57.4]} 1... g6 {[%clk 0:04:58.1]} 2. d4 {[%clk 0:04:56.7]}
2... Bg7 {[%clk 0:04:56.7]} 3. Bf4 {[%clk 0:04:56.1]} 3... Nf6 {[%clk
0:04:54.8]} 4. e3 {[%clk 0:04:55.5]} 4... O-O {[%clk 0:04:53.4]} 5. h3 {[%clk
0:04:54.5]} 5... d6 {[%clk 0:04:44.7]} 6. c3 {[%clk 0:04:52.7]} 6... Bf5 {[%clk
0:04:42.2]} 7. Qb3 {[%clk 0:04:50.8]} 7... Bxb1 {[%clk 0:04:40.7]} 8. Rxb1
{[%clk 0:04:49.2]} 8... Nc6 {[%clk 0:04:37.7]} 9. Qxb7 {[%clk 0:04:47.4]} 9...
Qd7 {[%clk 0:04:26.1]} 10. Bb5 {[%clk 0:04:43.7]} 10... Rfb8 {[%clk 0:04:20.7]}
0-1